[Event "Titled Tuesday Blitz January 04 2022"]
[White "Punin, Andrii"]
[Black "Demchenko, Anton"]
[WhiteFideId "14112639"]
[BlackFideId "4160258"]
[WhiteElo "2357"]
[BlackElo "2539"]
[Result "0-1"]
[Round "08"]
[TimeControl "180+1"]
[Date "2022.01.04"]
[WhiteClock "0:00:03"]
[BlackClock "0:00:08"]

1. e4 {[%clk 0:03:00]}  e5 {[%clk 0:02:57]} 2. Nf3 {[%clk 0:03:00]}  Nc6 {[%clk 0:02:58]} 3. Bb5 {[%clk 0:03:00]}  a6 {[%clk 0:02:58]} 4. Ba4 {[%clk 0:03:01]}  Nge7 {[%clk 0:02:59]} 5. c3 {[%clk 0:02:52]}  d6 {[%clk 0:02:58]} 6. d4 {[%clk 0:02:51]}  Bd7 {[%clk 0:02:59]} 7. d5 {[%clk 0:02:50]}  Nb8 {[%clk 0:02:59]} 8. c4 {[%clk 0:02:50]}  Ng6 {[%clk 0:02:59]} 9. g3 {[%clk 0:02:41]}  Be7 {[%clk 0:02:57]} 10. h4 {[%clk 0:02:41]}  h6 {[%clk 0:02:56]} 11. Bxd7+ {[%clk 0:02:35]}  Nxd7 {[%clk 0:02:47]} 12. h5 {[%clk 0:02:34]}  Ngf8 {[%clk 0:02:48]} 13. Nc3 {[%clk 0:02:30]}  Nh7 {[%clk 0:02:47]} 14. g4 {[%clk 0:02:29]}  O-O {[%clk 0:02:33]} 15. Be3 {[%clk 0:02:29]}  Bg5 {[%clk 0:02:34]} 16. Qd2 {[%clk 0:02:26]}  Bxe3 {[%clk 0:02:13]} 17. Qxe3 {[%clk 0:02:25]}  Rb8 {[%clk 0:02:14]} 18. a4 {[%clk 0:02:21]}  a5 {[%clk 0:02:07]} 19. O-O {[%clk 0:02:18]}  Nc5 {[%clk 0:02:02]} 20. Rfb1 {[%clk 0:01:57]}  Qf6 {[%clk 0:01:53]} 21. b4 {[%clk 0:01:50]}  axb4 {[%clk 0:01:53]} 22. Rxb4 {[%clk 0:01:51]}  Ra8 {[%clk 0:01:47]} 23. a5 {[%clk 0:01:47]}  Qe7 {[%clk 0:01:41]} 24. Ne2 {[%clk 0:01:36]}  b6 {[%clk 0:01:38]} 25. Rb5 {[%clk 0:01:34]}  Qd7 {[%clk 0:01:37]} 26. Nh2 {[%clk 0:01:31]}  Nf6 {[%clk 0:01:35]} 27. f3 {[%clk 0:01:29]}  Rxa5 {[%clk 0:01:27]} 28. Rbxa5 {[%clk 0:01:28]}  bxa5 {[%clk 0:01:28]} 29. Rxa5 {[%clk 0:01:28]}  Rb8 {[%clk 0:01:28]} 30. Ng3 {[%clk 0:01:17]}  Rb1+ {[%clk 0:01:23]} 31. Nhf1 {[%clk 0:01:15]}  Qe8 {[%clk 0:00:11]} 32. Nf5 {[%clk 0:01:10]}  Nh7 {[%clk 0:00:09]} 33. Qa3 {[%clk 0:01:00]}  Ng5 {[%clk 0:00:07]} 34. Ra8 {[%clk 0:00:55]}  Rb8 {[%clk 0:00:07]} 35. Rxb8 {[%clk 0:00:53]}  Qxb8 {[%clk 0:00:08]} 36. Kg2 {[%clk 0:00:49]}  Kh7 {[%clk 0:00:09]} 37. Nh2 {[%clk 0:00:32]}  g6 {[%clk 0:00:08]} 38. hxg6+ {[%clk 0:00:31]}  fxg6 {[%clk 0:00:08]} 39. Ne3 {[%clk 0:00:27]}  Kg7 {[%clk 0:00:08]} 40. Nef1 {[%clk 0:00:25]}  Qb6 {[%clk 0:00:07]} 41. Ng3 {[%clk 0:00:20]}  Nf7 {[%clk 0:00:07]} 42. Nhf1 {[%clk 0:00:18]}  Qb7 {[%clk 0:00:05]} 43. Ne3 {[%clk 0:00:15]}  Ng5 {[%clk 0:00:06]} 44. Ne2 {[%clk 0:00:12]}  Qb8 {[%clk 0:00:06]} 45. Ng1 {[%clk 0:00:12]}  Qb6 {[%clk 0:00:05]} 46. Nf1 {[%clk 0:00:12]}  Qb3 {[%clk 0:00:05]} 47. Qxb3 {[%clk 0:00:11]}  Nxb3 {[%clk 0:00:06]} 48. Ne3 {[%clk 0:00:11]}  Nc5 {[%clk 0:00:06]} 49. Nh3 {[%clk 0:00:11]}  Nd3 {[%clk 0:00:06]} 50. Nxg5 {[%clk 0:00:11]}  hxg5 {[%clk 0:00:06]} 51. Kf1 {[%clk 0:00:11]}  Kf6 {[%clk 0:00:06]} 52. Ke2 {[%clk 0:00:11]}  Nc5 {[%clk 0:00:06]} 53. Kd2 {[%clk 0:00:11]}  Nb3+ {[%clk 0:00:05]} 54. Kd1 {[%clk 0:00:10]}  Nd4 {[%clk 0:00:06]} 55. Kd2 {[%clk 0:00:08]}  Nxf3+ {[%clk 0:00:06]} 56. Ke2 {[%clk 0:00:08]}  Nd4+ {[%clk 0:00:07]} 57. Kd3 {[%clk 0:00:08]}  Nb3 {[%clk 0:00:07]} 58. Nd1 {[%clk 0:00:06]}  Nc5+ {[%clk 0:00:08]} 59. Ke3 {[%clk 0:00:06]}  Ke7 {[%clk 0:00:08]} 60. Nf2 {[%clk 0:00:07]}  Na4 {[%clk 0:00:07]} 61. Nh3 {[%clk 0:00:06]}  Kf6 {[%clk 0:00:07]} 62. Nf2 {[%clk 0:00:07]}  Nb2 {[%clk 0:00:07]} 63. c5 {[%clk 0:00:05]}  dxc5 {[%clk 0:00:08]} 64. Kd2 {[%clk 0:00:06]}  Nc4+ {[%clk 0:00:07]} 65. Kd3 {[%clk 0:00:05]}  Nd6 {[%clk 0:00:08]} 66. Kc3 {[%clk 0:00:05]}  c4 {[%clk 0:00:08]} 67. Kb4 {[%clk 0:00:05]}  Ke7 {[%clk 0:00:08]} 68. Kc3 {[%clk 0:00:04]}  Kd7 {[%clk 0:00:09]} 69. Nh3 {[%clk 0:00:04]}  Nxe4+ {[%clk 0:00:09]} 70. Kxc4 {[%clk 0:00:04]}  Kd6 {[%clk 0:00:09]} 71. Kd3 {[%clk 0:00:04]}  Kxd5 {[%clk 0:00:08]} 72. Ng1 {[%clk 0:00:03]}  c5 {[%clk 0:00:07]} 73. Nf3 {[%clk 0:00:03]}  c4+ {[%clk 0:00:08]} 74. Ke3 {[%clk 0:00:03]}  Nf6 {[%clk 0:00:06]} 75. Nxg5 {[%clk 0:00:03]}  Nxg4+ {[%clk 0:00:07]} 76. Kd2 {[%clk 0:00:04]}  Nf6 {[%clk 0:00:08]} 77. Kc2 {[%clk 0:00:04]}  Ne4 {[%clk 0:00:08]} 78. Nf3 {[%clk 0:00:03]}  g5 {[%clk 0:00:08]} 79. Nh2 {[%clk 0:00:03]}  Nf6 {[%clk 0:00:09]} 80. Nf1 {[%clk 0:00:03]}  g4 {[%clk 0:00:09]} 81. Kc3 {[%clk 0:00:03]}  Kc5 {[%clk 0:00:08]} 82. Ne3 {[%clk 0:00:03]}  Nd5+ {[%clk 0:00:08]} 0-1


[Site "https://www.chess.com"]

[Event "Titled Tuesday Blitz January 04 2022"]
[White "Shipov, Sergei"]
[Black "Sanal, Vahap"]
[WhiteFideId "4113624"]
[BlackFideId "6300545"]
[WhiteElo "2787"]
[BlackElo "2603"]
[Result "0-1"]
[Round "08"]
[TimeControl "180+1"]
[Date "2022.01.04"]
[WhiteClock "0:00:01"]
[BlackClock "0:00:06"]

1. d4 {[%clk 0:02:58]}  Nf6 {[%clk 0:03:00]} 2. c4 {[%clk 0:02:58]}  e6 {[%clk 0:03:00]} 3. Nc3 {[%clk 0:02:58]}  Bb4 {[%clk 0:03:00]} 4. Qc2 {[%clk 0:02:58]}  d5 {[%clk 0:03:00]} 5. a3 {[%clk 0:02:58]}  Bxc3+ {[%clk 0:02:59]} 6. Qxc3 {[%clk 0:02:59]}  O-O {[%clk 0:03:00]} 7. e3 {[%clk 0:02:59]}  b6 {[%clk 0:02:55]} 8. cxd5 {[%clk 0:02:59]}  Nxd5 {[%clk 0:02:55]} 9. Qc2 {[%clk 0:02:59]}  Bb7 {[%clk 0:02:52]} 10. Nf3 {[%clk 0:02:57]}  c5 {[%clk 0:02:50]} 11. dxc5 {[%clk 0:02:54]}  Nd7 {[%clk 0:02:42]} 12. b4 {[%clk 0:02:21]}  bxc5 {[%clk 0:02:41]} 13. b5 {[%clk 0:02:19]}  a6 {[%clk 0:02:31]} 14. Bd2 {[%clk 0:02:19]}  Qf6 {[%clk 0:02:28]} 15. Rb1 {[%clk 0:02:18]}  Ne5 {[%clk 0:02:18]} 16. Nxe5 {[%clk 0:02:15]}  Qxe5 {[%clk 0:02:18]} 17. b6 {[%clk 0:02:04]}  Rac8 {[%clk 0:02:09]} 18. Bc4 {[%clk 0:01:50]}  Nf4 {[%clk 0:02:05]} 19. Rg1 {[%clk 0:01:21]}  Nxg2+ {[%clk 0:01:54]} 20. Kf1 {[%clk 0:01:20]}  Qxh2 {[%clk 0:01:46]} 21. e4 {[%clk 0:00:53]}  Nf4 {[%clk 0:01:36]} 22. Qc3 {[%clk 0:00:50]}  g6 {[%clk 0:01:23]} 23. Qe5 {[%clk 0:00:36]}  Qh3+ {[%clk 0:01:19]} 24. Ke1 {[%clk 0:00:36]}  Nd3+ {[%clk 0:01:14]} 25. Bxd3 {[%clk 0:00:36]}  Qxd3 {[%clk 0:01:15]} 26. Rb2 {[%clk 0:00:23]}  Rfd8 {[%clk 0:01:12]} 27. Rg3 {[%clk 0:00:19]}  Qd4 {[%clk 0:01:04]} 28. Qxd4 {[%clk 0:00:18]}  cxd4 {[%clk 0:01:04]} 29. Bf4 {[%clk 0:00:17]}  Rc5 {[%clk 0:00:59]} 30. Bc7 {[%clk 0:00:16]}  Rd7 {[%clk 0:00:59]} 31. f3 {[%clk 0:00:16]}  e5 {[%clk 0:00:59]} 32. Kf2 {[%clk 0:00:16]}  f6 {[%clk 0:00:59]} 33. f4 {[%clk 0:00:16]}  Bxe4 {[%clk 0:00:55]} 34. fxe5 {[%clk 0:00:16]}  fxe5 {[%clk 0:00:56]} 35. Re2 {[%clk 0:00:16]}  Rf7+ {[%clk 0:00:55]} 36. Ke1 {[%clk 0:00:16]}  Rc1+ {[%clk 0:00:53]} 37. Kd2 {[%clk 0:00:17]}  Rc2+ {[%clk 0:00:53]} 38. Kd1 {[%clk 0:00:17]}  Rf1+ {[%clk 0:00:51]} 39. Re1 {[%clk 0:00:17]}  Rxe1+ {[%clk 0:00:48]} 40. Kxe1 {[%clk 0:00:18]}  Rc5 {[%clk 0:00:36]} 41. Rg5 {[%clk 0:00:15]}  Kf7 {[%clk 0:00:25]} 42. Rxe5 {[%clk 0:00:16]}  Rxe5 {[%clk 0:00:22]} 43. Bxe5 {[%clk 0:00:17]}  d3 {[%clk 0:00:22]} 44. Kd2 {[%clk 0:00:17]}  Ke6 {[%clk 0:00:22]} 45. Bf4 {[%clk 0:00:16]}  Kf5 {[%clk 0:00:22]} 46. Bh6 {[%clk 0:00:15]}  g5 {[%clk 0:00:19]} 47. Ke3 {[%clk 0:00:15]}  g4 {[%clk 0:00:16]} 48. Bf8 {[%clk 0:00:13]}  h5 {[%clk 0:00:13]} 49. Be7 {[%clk 0:00:12]}  g3 {[%clk 0:00:14]} 50. Bh4 {[%clk 0:00:12]}  Kg4 {[%clk 0:00:12]} 51. Kxe4 {[%clk 0:00:11]}  d2 {[%clk 0:00:12]} 52. b7 {[%clk 0:00:12]}  d1=Q {[%clk 0:00:13]} 53. b8=Q {[%clk 0:00:12]}  Qf3+ {[%clk 0:00:13]} 54. Kd4 {[%clk 0:00:12]}  Kxh4 {[%clk 0:00:13]} 55. Qd8+ {[%clk 0:00:12]}  Kh3 {[%clk 0:00:13]} 56. Kc5 {[%clk 0:00:10]}  Kg2 {[%clk 0:00:10]} 57. Kb6 {[%clk 0:00:10]}  Qe3+ {[%clk 0:00:09]} 58. Kb7 {[%clk 0:00:09]}  Qf3+ {[%clk 0:00:07]} 59. Ka7 {[%clk 0:00:08]}  Kg1 {[%clk 0:00:04]} 60. a4 {[%clk 0:00:07]}  g2 {[%clk 0:00:04]} 61. Kxa6 {[%clk 0:00:06]}  Kf1 {[%clk 0:00:04]} 62. Qb6 {[%clk 0:00:04]}  Qe2+ {[%clk 0:00:04]} 63. Ka7 {[%clk 0:00:03]}  g1=Q {[%clk 0:00:05]} 64. Qxg1+ {[%clk 0:00:01]}  Kxg1 {[%clk 0:00:06]} 0-1


[Site "https://www.chess.com"]

[Event "Titled Tuesday Blitz January 04 2022"]
[White "Sjugirov, Sanan"]
[Black "Xiong, Jeffery"]
[WhiteFideId "4189302"]
[BlackFideId "2047640"]
[WhiteElo "2602"]
[BlackElo "2727"]
[Result "0-1"]
[Round "08"]
[TimeControl "180+1"]
[Date "2022.01.04"]
[WhiteClock "0:00:02"]
[BlackClock "0:00:55"]

1. e4 {[%clk 0:03:00]}  c5 {[%clk 0:02:57]} 2. Nf3 {[%clk 0:03:00]}  d6 {[%clk 0:02:58]} 3. d4 {[%clk 0:03:00]}  Nf6 {[%clk 0:02:58]} 4. Nc3 {[%clk 0:03:00]}  cxd4 {[%clk 0:02:59]} 5. Nxd4 {[%clk 0:03:01]}  a6 {[%clk 0:02:59]} 6. Be3 {[%clk 0:03:00]}  e5 {[%clk 0:02:58]} 7. Nf3 {[%clk 0:03:00]}  Qc7 {[%clk 0:02:56]} 8. a4 {[%clk 0:02:58]}  h6 {[%clk 0:02:55]} 9. Be2 {[%clk 0:02:52]}  Be7 {[%clk 0:02:55]} 10. O-O {[%clk 0:02:49]}  O-O {[%clk 0:02:55]} 11. a5 {[%clk 0:02:49]}  Bd8 {[%clk 0:02:38]} 12. Nd5 {[%clk 0:02:38]}  Nxd5 {[%clk 0:02:38]} 13. exd5 {[%clk 0:02:39]}  Nd7 {[%clk 0:02:29]} 14. c4 {[%clk 0:02:35]}  f5 {[%clk 0:02:27]} 15. b4 {[%clk 0:02:28]}  f4 {[%clk 0:02:21]} 16. Bd2 {[%clk 0:02:28]}  Nf6 {[%clk 0:02:22]} 17. Rc1 {[%clk 0:02:04]}  Bf5 {[%clk 0:02:22]} 18. Re1 {[%clk 0:01:45]}  Kh8 {[%clk 0:02:18]} 19. Qb3 {[%clk 0:01:39]}  b6 {[%clk 0:01:50]} 20. axb6 {[%clk 0:01:31]}  Qxb6 {[%clk 0:01:51]} 21. Qa3 {[%clk 0:01:28]}  Qa7 {[%clk 0:01:32]} 22. c5 {[%clk 0:00:53]}  Nxd5 {[%clk 0:01:32]} 23. Ra1 {[%clk 0:00:51]}  a5 {[%clk 0:01:17]} 24. bxa5 {[%clk 0:00:26]}  e4 {[%clk 0:01:17]} 25. Nd4 {[%clk 0:00:25]}  e3 {[%clk 0:01:17]} 26. fxe3 {[%clk 0:00:20]}  fxe3 {[%clk 0:01:18]} 27. Bxe3 {[%clk 0:00:21]}  Qxa5 {[%clk 0:01:03]} 28. Qxa5 {[%clk 0:00:11]}  Bxa5 {[%clk 0:01:04]} 29. Nxf5 {[%clk 0:00:10]}  Bxe1 {[%clk 0:01:03]} 30. Rxa8 {[%clk 0:00:05]}  Rxa8 {[%clk 0:01:04]} 31. Bf3 {[%clk 0:00:04]}  Ra1 {[%clk 0:01:02]} 32. Bd4 {[%clk 0:00:03]}  Bc3+ {[%clk 0:00:54]} 33. Kf2 {[%clk 0:00:03]}  Bxd4+ {[%clk 0:00:55]} 34. Nxd4 {[%clk 0:00:04]}  dxc5 {[%clk 0:00:55]} 35. Bxd5 {[%clk 0:00:02]}  cxd4 {[%clk 0:00:55]} 36. Ke2 {[%clk 0:00:02]}  Ra3 {[%clk 0:00:55]} 0-1


[Site "https://www.chess.com"]

[Event "Titled Tuesday Blitz January 04 2022"]
[White "Terry, Renato"]
[Black "Yuan, Qingyu"]
[WhiteFideId "3803457"]
[BlackFideId "8609772"]
[WhiteElo "2577"]
[BlackElo "2359"]
[Result "1-0"]
[Round "08"]
[TimeControl "180+1"]
[Date "2022.01.04"]
[WhiteClock "0:00:07"]
[BlackClock "0:00:06"]

1. e4 {[%clk 0:03:00]}  c6 {[%clk 0:02:56]} 2. Nf3 {[%clk 0:03:00]}  d5 {[%clk 0:02:56]} 3. exd5 {[%clk 0:03:01]}  cxd5 {[%clk 0:02:56]} 4. Ne5 {[%clk 0:03:01]}  Nc6 {[%clk 0:02:55]} 5. d4 {[%clk 0:03:02]}  Nxe5 {[%clk 0:02:46]} 6. dxe5 {[%clk 0:03:03]}  e6 {[%clk 0:02:47]} 7. Bd3 {[%clk 0:03:02]}  Ne7 {[%clk 0:02:47]} 8. O-O {[%clk 0:03:01]}  Nc6 {[%clk 0:02:46]} 9. Re1 {[%clk 0:03:00]}  Be7 {[%clk 0:02:42]} 10. Qg4 {[%clk 0:03:00]}  g6 {[%clk 0:02:38]} 11. c3 {[%clk 0:02:54]}  h5 {[%clk 0:02:35]} 12. Qf4 {[%clk 0:02:51]}  Bd7 {[%clk 0:02:30]} 13. Nd2 {[%clk 0:02:51]}  Qc7 {[%clk 0:02:26]} 14. Nf3 {[%clk 0:02:51]}  Rf8 {[%clk 0:02:22]} 15. Ng5 {[%clk 0:02:44]}  O-O-O {[%clk 0:02:20]} 16. Nh7 {[%clk 0:02:17]}  g5 {[%clk 0:01:59]} 17. Nxg5 {[%clk 0:02:13]}  Rg8 {[%clk 0:01:34]} 18. h4 {[%clk 0:02:09]}  Rdf8 {[%clk 0:01:33]} 19. Bd2 {[%clk 0:01:58]}  f6 {[%clk 0:01:24]} 20. exf6 {[%clk 0:01:57]}  Bd6 {[%clk 0:01:24]} 21. Qf3 {[%clk 0:01:50]}  Ne5 {[%clk 0:01:23]} 22. Rxe5 {[%clk 0:01:51]}  Bxe5 {[%clk 0:01:24]} 23. f7 {[%clk 0:01:51]}  Rg7 {[%clk 0:01:19]} 24. Qxh5 {[%clk 0:01:51]}  Bf6 {[%clk 0:01:06]} 25. Qh6 {[%clk 0:01:50]}  Qd8 {[%clk 0:00:52]} 26. Nh7 {[%clk 0:01:27]}  Rfxf7 {[%clk 0:00:43]} 27. Nxf6 {[%clk 0:01:27]}  Qxf6 {[%clk 0:00:41]} 28. Qxf6 {[%clk 0:01:28]}  Rxf6 {[%clk 0:00:42]} 29. Bg5 {[%clk 0:01:27]}  Rff7 {[%clk 0:00:43]} 30. f4 {[%clk 0:01:26]}  a6 {[%clk 0:00:26]} 31. Re1 {[%clk 0:01:25]}  Kc7 {[%clk 0:00:24]} 32. h5 {[%clk 0:01:25]}  Kd6 {[%clk 0:00:25]} 33. h6 {[%clk 0:01:26]}  Rg8 {[%clk 0:00:23]} 34. Kh2 {[%clk 0:01:22]}  Bb5 {[%clk 0:00:17]} 35. Bb1 {[%clk 0:01:21]}  Be8 {[%clk 0:00:07]} 36. g4 {[%clk 0:01:21]}  Rd7 {[%clk 0:00:05]} 37. Bf6 {[%clk 0:01:10]}  Bg6 {[%clk 0:00:04]} 38. Bxg6 {[%clk 0:00:49]}  Rxg6 {[%clk 0:00:04]} 39. g5 {[%clk 0:00:49]}  Rxf6 {[%clk 0:00:04]} 40. gxf6 {[%clk 0:00:42]}  Rh7 {[%clk 0:00:05]} 41. Kg3 {[%clk 0:00:15]}  Rxh6 {[%clk 0:00:05]} 42. c4 {[%clk 0:00:07]}  Rxf6 {[%clk 0:00:03]} 43. cxd5 {[%clk 0:00:07]}  Kxd5 {[%clk 0:00:04]} 44. Rd1+ {[%clk 0:00:05]}  Ke4 {[%clk 0:00:04]} 45. Re1+ {[%clk 0:00:05]}  Kd5 {[%clk 0:00:04]} 46. Kg4 {[%clk 0:00:05]}  Rg6+ {[%clk 0:00:04]} 47. Kf3 {[%clk 0:00:06]}  Rh6 {[%clk 0:00:03]} 48. Rd1+ {[%clk 0:00:06]}  Kc4 {[%clk 0:00:03]} 49. Ke4 {[%clk 0:00:07]}  Rh2 {[%clk 0:00:03]} 50. Rc1+ {[%clk 0:00:07]}  Kb5 {[%clk 0:00:03]} 51. Ke5 {[%clk 0:00:03]}  Rxb2 {[%clk 0:00:02]} 52. Kxe6 {[%clk 0:00:02]}  Rxa2 {[%clk 0:00:02]} 53. Re1 {[%clk 0:00:02]}  Rf2 {[%clk 0:00:02]} 54. f5 {[%clk 0:00:03]}  a5 {[%clk 0:00:03]} 55. Rb1+ {[%clk 0:00:04]}  Kc6 {[%clk 0:00:03]} 56. f6 {[%clk 0:00:03]}  a4 {[%clk 0:00:03]} 57. Rc1+ {[%clk 0:00:04]}  Kb5 {[%clk 0:00:03]} 58. Rb1+ {[%clk 0:00:04]}  Ka5 {[%clk 0:00:03]} 59. Rd1 {[%clk 0:00:04]}  b5 {[%clk 0:00:03]} 60. f7 {[%clk 0:00:03]}  a3 {[%clk 0:00:02]} 61. Rd8 {[%clk 0:00:03]}  Ka4 {[%clk 0:00:02]} 62. Ra8+ {[%clk 0:00:02]}  Kb3 {[%clk 0:00:02]} 63. Ra5 {[%clk 0:00:02]}  b4 {[%clk 0:00:03]} 64. Rf5 {[%clk 0:00:03]}  Re2+ {[%clk 0:00:03]} 65. Kd6 {[%clk 0:00:03]}  Rd2+ {[%clk 0:00:03]} 66. Kc7 {[%clk 0:00:03]}  Rc2+ {[%clk 0:00:03]} 67. Kb7 {[%clk 0:00:03]}  a2 {[%clk 0:00:03]} 68. Rf1 {[%clk 0:00:03]}  Kb2 {[%clk 0:00:02]} 69. f8=Q {[%clk 0:00:03]}  a1=Q {[%clk 0:00:02]} 70. Qxb4+ {[%clk 0:00:03]}  Ka2 {[%clk 0:00:02]} 71. Qa4+ {[%clk 0:00:04]}  Kb2 {[%clk 0:00:03]} 72. Qxa1+ {[%clk 0:00:04]}  Kb3 {[%clk 0:00:04]} 73. Rb1+ {[%clk 0:00:05]}  Kc4 {[%clk 0:00:04]} 74. Qa4+ {[%clk 0:00:05]}  Kd3 {[%clk 0:00:05]} 75. Rb3+ {[%clk 0:00:06]}  Kd2 {[%clk 0:00:05]} 76. Qd4+ {[%clk 0:00:06]}  Kc1 {[%clk 0:00:05]} 77. Qe3+ {[%clk 0:00:06]}  Kd1 {[%clk 0:00:06]} 78. Rb1+ {[%clk 0:00:07]} 1-0


[Site "https://www.chess.com"]

[Event "Titled Tuesday Blitz January 04 2022"]
[White "Timofeev, Artyom"]
[Black "Pelopidass"]
[WhiteFideId "4140419"]
[WhiteElo "2583"]
[BlackElo "2622"]
[Result "1/2-1/2"]
[Round "08"]
[TimeControl "180+1"]
[Date "2022.01.04"]
[WhiteClock "0:00:29"]
[BlackClock "0:00:19"]

1. d4 {[%clk 0:03:00]}  Nf6 {[%clk 0:02:59]} 2. Nf3 {[%clk 0:03:00]}  g6 {[%clk 0:03:00]} 3. Nbd2 {[%clk 0:03:00]}  d5 {[%clk 0:02:58]} 4. b4 {[%clk 0:02:59]}  Bg7 {[%clk 0:02:57]} 5. e3 {[%clk 0:03:00]}  O-O {[%clk 0:02:57]} 6. Be2 {[%clk 0:02:59]}  a5 {[%clk 0:02:53]} 7. b5 {[%clk 0:02:59]}  c6 {[%clk 0:02:51]} 8. O-O {[%clk 0:02:54]}  Bf5 {[%clk 0:02:49]} 9. Ba3 {[%clk 0:02:49]}  Qc7 {[%clk 0:02:37]} 10. c4 {[%clk 0:02:44]}  Rc8 {[%clk 0:02:30]} 11. Rc1 {[%clk 0:02:31]}  Qd8 {[%clk 0:02:20]} 12. cxd5 {[%clk 0:02:27]}  cxd5 {[%clk 0:02:18]} 13. Rxc8 {[%clk 0:02:26]}  Bxc8 {[%clk 0:02:19]} 14. Qb3 {[%clk 0:02:07]}  Bg4 {[%clk 0:02:02]} 15. Rc1 {[%clk 0:02:05]}  e6 {[%clk 0:01:54]} 16. h3 {[%clk 0:02:00]}  Bxf3 {[%clk 0:01:54]} 17. Nxf3 {[%clk 0:02:00]}  Nbd7 {[%clk 0:01:52]} 18. Qc2 {[%clk 0:01:45]}  Ne8 {[%clk 0:01:44]} 19. Ne1 {[%clk 0:01:30]}  Bf8 {[%clk 0:01:42]} 20. Bxf8 {[%clk 0:01:20]}  Kxf8 {[%clk 0:01:43]} 21. Nd3 {[%clk 0:01:20]}  Nd6 {[%clk 0:01:41]} 22. Nc5 {[%clk 0:01:20]}  Rc8 {[%clk 0:01:25]} 23. Qb2 {[%clk 0:01:19]}  b6 {[%clk 0:01:24]} 24. Nxd7+ {[%clk 0:01:09]}  Qxd7 {[%clk 0:01:25]} 25. a4 {[%clk 0:01:09]}  Rxc1+ {[%clk 0:01:18]} 26. Qxc1 {[%clk 0:01:09]}  Qc8 {[%clk 0:01:19]} 27. Qa3 {[%clk 0:01:05]}  Ke7 {[%clk 0:01:18]} 28. Bd3 {[%clk 0:01:05]}  f5 {[%clk 0:01:15]} 29. g3 {[%clk 0:01:05]}  Kd7 {[%clk 0:01:13]} 30. Kg2 {[%clk 0:01:05]}  Qf8 {[%clk 0:00:39]} 31. h4 {[%clk 0:01:01]}  h6 {[%clk 0:00:37]} 32. Kf1 {[%clk 0:00:59]}  g5 {[%clk 0:00:37]} 33. hxg5 {[%clk 0:00:57]}  hxg5 {[%clk 0:00:38]} 34. Ke2 {[%clk 0:00:57]}  g4 {[%clk 0:00:37]} 35. Qc1 {[%clk 0:00:53]}  Qc8 {[%clk 0:00:37]} 36. Qh1 {[%clk 0:00:53]}  Qc3 {[%clk 0:00:24]} 37. Qh7+ {[%clk 0:00:52]}  Kd8 {[%clk 0:00:23]} 38. Qg8+ {[%clk 0:00:39]}  Kd7 {[%clk 0:00:23]} 39. Qg7+ {[%clk 0:00:39]}  Kd8 {[%clk 0:00:23]} 40. Qf8+ {[%clk 0:00:39]}  Kd7 {[%clk 0:00:24]} 41. Qb8 {[%clk 0:00:37]}  Qc7 {[%clk 0:00:19]} 42. Qf8 {[%clk 0:00:33]}  Qc3 {[%clk 0:00:19]} 43. Qg7+ {[%clk 0:00:32]}  Kd8 {[%clk 0:00:19]} 44. Qf6+ {[%clk 0:00:30]}  Kd7 {[%clk 0:00:19]} 45. Qg7+ {[%clk 0:00:29]} 1/2-1/2


[Site "https://www.chess.com"]

[Event "Titled Tuesday Blitz January 04 2022"]
[White "Vokhidov, Shamsiddin"]
[Black "Deac, Bogdan-Daniel"]
[WhiteFideId "14204223"]
[BlackFideId "1226380"]
[WhiteElo "2611"]
[BlackElo "2646"]
[Result "0-1"]
[Round "08"]
[TimeControl "180+1"]
[Date "2022.01.04"]
[WhiteClock "0:00:02"]
[BlackClock "0:00:06"]

1. e4 {[%clk 0:03:00]}  e5 {[%clk 0:03:00]} 2. Nf3 {[%clk 0:03:01]}  Nc6 {[%clk 0:03:01]} 3. Bb5 {[%clk 0:03:01]}  Nf6 {[%clk 0:03:00]} 4. d3 {[%clk 0:03:01]}  Bc5 {[%clk 0:03:00]} 5. Bxc6 {[%clk 0:03:02]}  dxc6 {[%clk 0:03:00]} 6. Nbd2 {[%clk 0:03:03]}  Nd7 {[%clk 0:02:59]} 7. Nc4 {[%clk 0:02:58]}  f6 {[%clk 0:02:59]} 8. Be3 {[%clk 0:02:46]}  Qe7 {[%clk 0:02:58]} 9. c3 {[%clk 0:02:44]}  Nf8 {[%clk 0:02:42]} 10. Bxc5 {[%clk 0:02:43]}  Qxc5 {[%clk 0:02:42]} 11. O-O {[%clk 0:02:44]}  Ne6 {[%clk 0:02:36]} 12. Ne3 {[%clk 0:02:38]}  O-O {[%clk 0:02:05]} 13. d4 {[%clk 0:02:38]}  exd4 {[%clk 0:02:04]} 14. cxd4 {[%clk 0:02:39]}  Qe7 {[%clk 0:02:05]} 15. d5 {[%clk 0:02:34]}  Nf4 {[%clk 0:01:38]} 16. Qc2 {[%clk 0:02:20]}  Re8 {[%clk 0:01:24]} 17. Nd2 {[%clk 0:01:36]}  cxd5 {[%clk 0:01:19]} 18. exd5 {[%clk 0:01:36]}  Qf7 {[%clk 0:00:45]} 19. Rfe1 {[%clk 0:01:36]}  Rd8 {[%clk 0:00:40]} 20. Rac1 {[%clk 0:01:01]}  Nxd5 {[%clk 0:00:38]} 21. Nxd5 {[%clk 0:01:01]}  Rxd5 {[%clk 0:00:38]} 22. Qxc7 {[%clk 0:00:58]}  Rxd2 {[%clk 0:00:21]} 23. Qxc8+ {[%clk 0:00:57]}  Rxc8 {[%clk 0:00:20]} 24. Rxc8+ {[%clk 0:00:57]}  Qf8 {[%clk 0:00:21]} 25. Rxf8+ {[%clk 0:00:55]}  Kxf8 {[%clk 0:00:22]} 26. Rb1 {[%clk 0:00:47]}  a5 {[%clk 0:00:22]} 27. Kf1 {[%clk 0:00:47]}  b5 {[%clk 0:00:21]} 28. a3 {[%clk 0:00:40]}  b4 {[%clk 0:00:18]} 29. axb4 {[%clk 0:00:33]}  axb4 {[%clk 0:00:19]} 30. b3 {[%clk 0:00:32]}  Rd3 {[%clk 0:00:18]} 31. Ke2 {[%clk 0:00:31]}  Rc3 {[%clk 0:00:18]} 32. Kd2 {[%clk 0:00:31]}  Kf7 {[%clk 0:00:18]} 33. h3 {[%clk 0:00:30]}  g5 {[%clk 0:00:18]} 34. Ke2 {[%clk 0:00:22]}  h5 {[%clk 0:00:18]} 35. Kd2 {[%clk 0:00:20]}  Kg6 {[%clk 0:00:17]} 36. Rb2 {[%clk 0:00:21]}  Kf5 {[%clk 0:00:17]} 37. Rb1 {[%clk 0:00:21]}  g4 {[%clk 0:00:14]} 38. hxg4+ {[%clk 0:00:20]}  hxg4 {[%clk 0:00:15]} 39. Rb2 {[%clk 0:00:20]}  Kg5 {[%clk 0:00:15]} 40. Rb1 {[%clk 0:00:20]}  f5 {[%clk 0:00:15]} 41. g3 {[%clk 0:00:18]}  f4 {[%clk 0:00:13]} 42. Ra1 {[%clk 0:00:08]}  fxg3 {[%clk 0:00:12]} 43. fxg3 {[%clk 0:00:09]}  Rxb3 {[%clk 0:00:09]} 44. Ra5+ {[%clk 0:00:08]}  Kf6 {[%clk 0:00:09]} 45. Rb5 {[%clk 0:00:08]}  Rxg3 {[%clk 0:00:05]} 46. Rxb4 {[%clk 0:00:08]}  Kg5 {[%clk 0:00:06]} 47. Rb8 {[%clk 0:00:06]}  Rf3 {[%clk 0:00:05]} 48. Ke2 {[%clk 0:00:05]}  Kh4 {[%clk 0:00:06]} 49. Rb2 {[%clk 0:00:01]}  Kg3 {[%clk 0:00:06]} 50. Rb1 {[%clk 0:00:02]}  Rf2+ {[%clk 0:00:06]} 51. Ke3 {[%clk 0:00:02]}  Kg2 {[%clk 0:00:06]} 0-1


[Site "https://www.chess.com"]